[Event "*** Titled Tuesday Blitz"]
[Site "Chess.com"]
[Date "2020.05.26"]
[Round "2"]
[White "HouseOfDurin"]
[Black "DrBergerBerger"]
[Result "0-1"]
[WhiteElo "2043"]
[BlackElo "2371"]
[TimeControl "180+1"]
[EndTime "10:18:19 PDT"]
[Termination "DrBergerBerger won by resignation"]

1. d4 {[%clk 0:03:00.9]} 1... d5 {[%clk 0:02:59.5]} 2. Bg5 {[%clk 0:03:01.1]}
2... c5 {[%clk 0:02:55.1]} 3. c3 {[%clk 0:03:00.3]} 3... Qb6 {[%clk 0:02:49.8]}
4. Qd2 {[%clk 0:02:50.1]} 4... h6 {[%clk 0:02:43.8]} 5. Bh4 {[%clk 0:02:49.3]}
5... Bf5 {[%clk 0:02:38.7]} 6. e3 {[%clk 0:02:44.5]} 6... e6 {[%clk 0:02:32.4]}
7. f4 {[%clk 0:02:31.7]} 7... Nd7 {[%clk 0:02:16.8]} 8. dxc5 {[%clk 0:01:52.3]}
8... Bxc5 {[%clk 0:01:55.3]} 9. Bf2 {[%clk 0:01:51.3]} 9... a5 {[%clk
0:01:50.5]} 10. Ne2 {[%clk 0:01:38.9]} 10... Ngf6 {[%clk 0:01:48.9]} 11. Ng3
{[%clk 0:01:22.4]} 11... Ne4 {[%clk 0:01:40.4]} 12. Nxe4 {[%clk 0:01:21.9]}
12... Bxe4 {[%clk 0:01:41.3]} 13. Be2 {[%clk 0:01:15.1]} 13... Nf6 {[%clk
0:01:35]} 14. Bf3 {[%clk 0:01:10.1]} 14... g5 {[%clk 0:01:28.8]} 15. h3 {[%clk
0:00:42.1]} 15... gxf4 {[%clk 0:01:08.8]} 16. exf4 {[%clk 0:00:43]} 16... Bxf3
{[%clk 0:01:06.6]} 17. gxf3 {[%clk 0:00:41.5]} 17... Bxf2+ {[%clk 0:00:57.1]}
18. Qxf2 {[%clk 0:00:42.4]} 18... Qxf2+ {[%clk 0:00:57.3]} 19. Kxf2 {[%clk
0:00:43.3]} 19... Rg8 {[%clk 0:00:45.5]} 20. Nd2 {[%clk 0:00:40.2]} 20... Ke7
{[%clk 0:00:42.5]} 21. Rhg1 {[%clk 0:00:35.8]} 21... Nh5 {[%clk 0:00:40]} 22.
Ke3 {[%clk 0:00:30.8]} 22... Ng7 {[%clk 0:00:35.9]} 23. Nb3 {[%clk 0:00:22.5]}
23... Nf5+ {[%clk 0:00:33.1]} 24. Kd3 {[%clk 0:00:19.3]} 24... a4 {[%clk
0:00:30.3]} 25. Nd4 {[%clk 0:00:18.5]} 25... Nxd4 {[%clk 0:00:27.2]} 26. Kxd4
{[%clk 0:00:19.4]} 26... Kd6 {[%clk 0:00:26.2]} 27. Rg4 {[%clk 0:00:10.9]} 27...
h5 {[%clk 0:00:14.4]} 28. Rg5 {[%clk 0:00:10.3]} 28... f6 {[%clk 0:00:14.4]} 29.
Rgg1 {[%clk 0:00:06.3]} 29... e5+ {[%clk 0:00:11.3]} 30. fxe5+ {[%clk
0:00:05.9]} 30... fxe5+ {[%clk 0:00:12.2]} 31. Ke3 {[%clk 0:00:06.1]} 31... b5
{[%clk 0:00:10.1]} 32. Raf1 {[%clk 0:00:04]} 32... Kc5 {[%clk 0:00:09]} 33. Rxg8
{[%clk 0:00:01.5]} 33... Rxg8 {[%clk 0:00:08.4]} 34. f4 {[%clk 0:00:02.4]} 34...
Rg3+ {[%clk 0:00:08.2]} 35. Rf3 {[%clk 0:00:02.5]} 35... d4+ {[%clk 0:00:08.2]}
36. Ke4 {[%clk 0:00:01.7]} 36... Rxf3 {[%clk 0:00:04.2]} 37. Kxf3 {[%clk
0:00:02.6]} 37... exf4 {[%clk 0:00:04]} 38. cxd4+ {[%clk 0:00:01.6]} 38... Kxd4
{[%clk 0:00:04]} 39. Kxf4 {[%clk 0:00:01.8]} 39... Kd3 {[%clk 0:00:04.9]} 40.
Kg5 {[%clk 0:00:02]} 40... Kc2 {[%clk 0:00:05.8]} 41. Kxh5 {[%clk 0:00:02.4]}
41... Kxb2 {[%clk 0:00:06.3]} 42. Kg5 {[%clk 0:00:02.4]} 42... b4 {[%clk
0:00:06.1]} 43. h4 {[%clk 0:00:03.3]} 43... b3 {[%clk 0:00:06.3]} 44. h5 {[%clk
0:00:04.2]} 44... bxa2 {[%clk 0:00:06.3]} 45. h6 {[%clk 0:00:04.6]} 45... a1=Q
{[%clk 0:00:06.7]} 46. h7 {[%clk 0:00:04.8]} 46... Kb1 {[%clk 0:00:07.2]} 47.
Kg6 {[%clk 0:00:04.6]} 47... Qh8 {[%clk 0:00:08]} 48. Kh6 {[%clk 0:00:04]} 48...
a3 {[%clk 0:00:08.9]} 49. Kg6 {[%clk 0:00:04.1]} 49... a2 {[%clk 0:00:09.8]} 50.
Kh6 {[%clk 0:00:04.5]} 50... a1=Q {[%clk 0:00:10.7]} 51. Kg6 {[%clk 0:00:04.9]}
51... Qag7+ {[%clk 0:00:10.7]} 0-1

[Event "*** Titled Tuesday Blitz"]
[Site "Chess.com"]
[Date "2020.05.26"]
[Round "2"]
[White "TargetA"]
[Black "mrkvoz"]
[Result "0-1"]
[WhiteElo "2541"]
[BlackElo "2847"]
[TimeControl "180+1"]
[EndTime "10:18:20 PDT"]
[Termination "mrkvoz won on time"]

1. e4 {[%clk 0:03:00.9]} 1... d6 {[%clk 0:03:00.2]} 2. d4 {[%clk 0:03:00.8]}
2... Nf6 {[%clk 0:03:00.9]} 3. Nc3 {[%clk 0:03:00.9]} 3... e5 {[%clk 0:03:01.6]}
4. Nf3 {[%clk 0:03:00.5]} 4... Nc6 {[%clk 0:03:01.3]} 5. Bb5 {[%clk 0:02:52.4]}
5... exd4 {[%clk 0:03:00.4]} 6. Nxd4 {[%clk 0:02:47.2]} 6... Bd7 {[%clk
0:02:59.9]} 7. O-O {[%clk 0:02:44.9]} 7... Be7 {[%clk 0:02:59.4]} 8. Re1 {[%clk
0:02:41.7]} 8... Nxd4 {[%clk 0:02:53]} 9. Bxd7+ {[%clk 0:02:39.4]} 9... Nxd7
{[%clk 0:02:50.2]} 10. Qxd4 {[%clk 0:02:38.6]} 10... O-O {[%clk 0:02:50.3]} 11.
Nd5 {[%clk 0:01:25.3]} 11... Re8 {[%clk 0:02:48.7]} 12. Nxe7+ {[%clk 0:01:23.6]}
12... Qxe7 {[%clk 0:02:49.6]} 13. Bf4 {[%clk 0:01:23.8]} 13... Qf6 {[%clk
0:02:49.2]} 14. Qxf6 {[%clk 0:01:19.1]} 14... Nxf6 {[%clk 0:02:50.1]} 15. f3
{[%clk 0:01:19.7]} 15... a5 {[%clk 0:02:46.9]} 16. a4 {[%clk 0:01:19.1]} 16...
Nd7 {[%clk 0:02:42.3]} 17. b3 {[%clk 0:01:18.6]} 17... f6 {[%clk 0:02:41.8]} 18.
Rad1 {[%clk 0:01:18.5]} 18... Kf7 {[%clk 0:02:41.2]} 19. Rd5 {[%clk 0:01:18.6]}
19... b6 {[%clk 0:02:40.7]} 20. Red1 {[%clk 0:01:18.6]} 20... Nc5 {[%clk
0:02:40.7]} 21. Be3 {[%clk 0:01:17.4]} 21... Re6 {[%clk 0:02:39.5]} 22. Bxc5
{[%clk 0:01:17]} 22... bxc5 {[%clk 0:02:40.4]} 23. Kf2 {[%clk 0:01:17]} 23...
Rb8 {[%clk 0:02:40.5]} 24. R1d3 {[%clk 0:01:12]} 24... Rb4 {[%clk 0:02:38.9]}
25. Rc3 {[%clk 0:01:11.6]} 25... Re8 {[%clk 0:02:38.1]} 26. Ke3 {[%clk
0:01:08.4]} 26... Ke6 {[%clk 0:02:35.8]} 27. Kd2 {[%clk 0:01:05.3]} 27... Reb8
{[%clk 0:02:27.5]} 28. Kc1 {[%clk 0:01:04]} 28... c6 {[%clk 0:02:17.1]} 29. Rd1
{[%clk 0:01:02]} 29... c4 {[%clk 0:02:17.2]} 30. Kb2 {[%clk 0:00:59.1]} 30... c5
{[%clk 0:02:15.8]} 31. Ka3 {[%clk 0:00:56.5]} 31... cxb3 {[%clk 0:02:14.2]} 32.
cxb3 {[%clk 0:00:57.4]} 32... h5 {[%clk 0:02:10.5]} 33. Rcd3 {[%clk 0:00:57.7]}
33... R8b6 {[%clk 0:02:08.9]} 34. Rc1 {[%clk 0:00:57.2]} 34... h4 {[%clk
0:02:07.4]} 35. g3 {[%clk 0:00:56.1]} 35... hxg3 {[%clk 0:02:02.4]} 36. hxg3
{[%clk 0:00:57]} 36... Rb8 {[%clk 0:02:02.2]} 37. Rcd1 {[%clk 0:00:56.2]} 37...
R4b6 {[%clk 0:01:59.3]} 38. f4 {[%clk 0:00:53.7]} 38... Rh8 {[%clk 0:01:55.6]}
39. Kb2 {[%clk 0:00:53.3]} 39... Rh2+ {[%clk 0:01:53.9]} 40. Kc3 {[%clk
0:00:53.1]} 40... Re2 {[%clk 0:01:52]} 41. Rh1 {[%clk 0:00:38.5]} 41... Rxe4
{[%clk 0:01:51]} 42. Rh8 {[%clk 0:00:39]} 42... Rxb3+ {[%clk 0:01:46.7]} 43.
Kxb3 {[%clk 0:00:37.5]} 43... c4+ {[%clk 0:01:47.2]} 44. Kc3 {[%clk 0:00:37.1]}
44... cxd3 {[%clk 0:01:48.1]} 45. Kxd3 {[%clk 0:00:35.1]} 45... Rxa4 {[%clk
0:01:47.6]} 46. Rg8 {[%clk 0:00:35.2]} 46... Ra3+ {[%clk 0:01:47]} 47. Ke4
{[%clk 0:00:35.4]} 47... Rxg3 {[%clk 0:01:47.9]} 48. f5+ {[%clk 0:00:35.8]}
48... Kf7 {[%clk 0:01:47.5]} 49. Rd8 {[%clk 0:00:34.7]} 49... Ke7 {[%clk
0:01:34.1]} 50. Ra8 {[%clk 0:00:34.3]} 50... Rg4+ {[%clk 0:01:31.8]} 51. Kd5
{[%clk 0:00:33.4]} 51... a4 {[%clk 0:01:26.8]} 52. Ra7+ {[%clk 0:00:27.3]} 52...
Kf8 {[%clk 0:01:26.9]} 53. Kxd6 {[%clk 0:00:23.9]} 53... Kg8 {[%clk 0:01:27]}
54. Ra8+ {[%clk 0:00:19.7]} 54... Kh7 {[%clk 0:01:27.1]} 55. Ke6 {[%clk
0:00:19.3]} 55... Re4+ {[%clk 0:01:25.7]} 56. Kf7 {[%clk 0:00:19.7]} 56... Rb4
{[%clk 0:01:20.1]} 57. Ra7 {[%clk 0:00:19.2]} 57... Kh6 {[%clk 0:01:16.2]} 58.
Kg8 {[%clk 0:00:18.3]} 58... Rb8+ {[%clk 0:01:15.1]} 59. Kf7 {[%clk 0:00:18.5]}
59... Rb5 {[%clk 0:01:15.1]} 60. Kg8 {[%clk 0:00:18.2]} 60... Rxf5 {[%clk
0:01:15]} 61. Rxg7 {[%clk 0:00:18.4]} 61... Rg5 {[%clk 0:01:15]} 62. Kh8 {[%clk
0:00:17]} 62... Ra5 {[%clk 0:01:13.8]} 63. Rh7+ {[%clk 0:00:10.9]} 63... Kg6
{[%clk 0:01:11.5]} 64. Rg7+ {[%clk 0:00:10.8]} 64... Kf5 {[%clk 0:01:11.7]} 65.
Rh7 {[%clk 0:00:09.8]} 65... Ra8+ {[%clk 0:01:10.9]} 0-1

[Event "*** Titled Tuesday Blitz"]
[Site "Chess.com"]
[Date "2020.05.26"]
[Round "2"]
[White "MichailovM"]
[Black "Lunow"]
[Result "1/2-1/2"]
[WhiteElo "2403"]
[BlackElo "2159"]
[TimeControl "180+1"]
[EndTime "10:18:21 PDT"]
[Termination "Game drawn by repetition"]

1. e4 {[%clk 0:02:34.5]} 1... e5 {[%clk 0:02:57]} 2. Nf3 {[%clk 0:02:34.6]} 2...
Nc6 {[%clk 0:02:54.9]} 3. Bb5 {[%clk 0:02:34.4]} 3... a6 {[%clk 0:02:54.6]} 4.
Ba4 {[%clk 0:02:35]} 4... Nf6 {[%clk 0:02:53.1]} 5. O-O {[%clk 0:02:35.6]} 5...
Be7 {[%clk 0:02:52.4]} 6. Re1 {[%clk 0:02:35.3]} 6... b5 {[%clk 0:02:51.8]} 7.
Bb3 {[%clk 0:02:36]} 7... O-O {[%clk 0:02:50.4]} 8. a4 {[%clk 0:02:36.4]} 8...
b4 {[%clk 0:02:47.4]} 9. d3 {[%clk 0:02:36.9]} 9... d6 {[%clk 0:02:40.4]} 10. a5
{[%clk 0:02:34.8]} 10... Nb8 {[%clk 0:02:29.2]} 11. Nbd2 {[%clk 0:02:20.1]}
11... Nbd7 {[%clk 0:02:28.6]} 12. Nf1 {[%clk 0:02:18]} 12... Bb7 {[%clk
0:02:14]} 13. Bd2 {[%clk 0:02:16.1]} 13... c5 {[%clk 0:02:10.4]} 14. Ng3 {[%clk
0:02:15.7]} 14... Re8 {[%clk 0:02:07.4]} 15. Nf5 {[%clk 0:02:10.8]} 15... Bf8
{[%clk 0:02:05.4]} 16. Ng5 {[%clk 0:01:53.3]} 16... d5 {[%clk 0:02:00.5]} 17.
exd5 {[%clk 0:01:53]} 17... h6 {[%clk 0:01:55.4]} 18. Ne4 {[%clk 0:01:12.8]}
18... Bxd5 {[%clk 0:01:51.8]} 19. Bxd5 {[%clk 0:01:06.4]} 19... Nxd5 {[%clk
0:01:52.7]} 20. Qg4 {[%clk 0:01:06.6]} 20... Kh8 {[%clk 0:01:42.6]} 21. Nfd6
{[%clk 0:00:47.9]} 21... Re7 {[%clk 0:01:36.5]} 22. Qh5 {[%clk 0:00:40.6]} 22...
g6 {[%clk 0:01:33.4]} 23. Qh3 {[%clk 0:00:39.4]} 23... f5 {[%clk 0:01:23.6]} 24.
Bxh6 {[%clk 0:00:27.9]} 24... Rh7 {[%clk 0:01:13]} 25. Nf7+ {[%clk 0:00:25.5]}
25... Rxf7 {[%clk 0:01:12.9]} 26. Ng5 {[%clk 0:00:20.5]} 26... Kg8 {[%clk
0:01:01.9]} 27. Nxf7 {[%clk 0:00:20.5]} 27... Kxf7 {[%clk 0:01:01.7]} 28. Bxf8
{[%clk 0:00:18.6]} 28... Qxf8 {[%clk 0:01:00.1]} 29. Qf3 {[%clk 0:00:17.5]}
29... Qd6 {[%clk 0:00:58.4]} 30. c4 {[%clk 0:00:16.7]} 30... bxc3 {[%clk
0:00:55.6]} 31. bxc3 {[%clk 0:00:17.6]} 31... Rb8 {[%clk 0:00:52.8]} 32. Rab1
{[%clk 0:00:16.8]} 32... Rxb1 {[%clk 0:00:46.3]} 33. Rxb1 {[%clk 0:00:17.7]}
33... Nxc3 {[%clk 0:00:45.8]} 34. Rb7 {[%clk 0:00:17.3]} 34... e4 {[%clk
0:00:40.4]} 35. dxe4 {[%clk 0:00:17.2]} 35... Nxe4 {[%clk 0:00:40.4]} 36. h4
{[%clk 0:00:16]} 36... Kf6 {[%clk 0:00:25.6]} 37. g3 {[%clk 0:00:15.6]} 37...
Ne5 {[%clk 0:00:16.9]} 38. Qe3 {[%clk 0:00:13.4]} 38... Qd1+ {[%clk 0:00:12.7]}
39. Kg2 {[%clk 0:00:13.7]} 39... Nd2 {[%clk 0:00:08.6]} 40. Rb6+ {[%clk
0:00:12.7]} 40... Kf7 {[%clk 0:00:05.4]} 41. Rb7+ {[%clk 0:00:06.8]} 41... Ke6
{[%clk 0:00:05.4]} 42. Rb6+ {[%clk 0:00:06.9]} 42... Kf7 {[%clk 0:00:05.3]} 43.
Rb7+ {[%clk 0:00:06.9]} 43... Ke6 {[%clk 0:00:05.3]} 44. Rb6+ {[%clk 0:00:07]}
44... Kf7 {[%clk 0:00:05]} 1/2-1/2

[Event "*** Titled Tuesday Blitz"]
[Site "Chess.com"]
[Date "2020.05.26"]
[Round "2"]
[White "Mikhail_Biryukov"]
[Black "SanQui14"]
[Result "1-0"]
[WhiteElo "2643"]
[BlackElo "2315"]
[TimeControl "180+1"]
[EndTime "10:18:23 PDT"]
[Termination "Mikhail_Biryukov won by resignation"]

1. e4 {[%clk 0:02:56.7]} 1... c5 {[%clk 0:02:58.3]} 2. Nf3 {[%clk 0:02:54.7]}
2... g6 {[%clk 0:02:58.8]} 3. c3 {[%clk 0:02:51.2]} 3... Bg7 {[%clk 0:02:57.1]}
4. d4 {[%clk 0:02:50.9]} 4... cxd4 {[%clk 0:02:58]} 5. cxd4 {[%clk 0:02:51.7]}
5... d5 {[%clk 0:02:58.6]} 6. exd5 {[%clk 0:02:50.9]} 6... Nf6 {[%clk 0:02:58]}
7. Nc3 {[%clk 0:02:50.4]} 7... Nxd5 {[%clk 0:02:58.1]} 8. Bc4 {[%clk 0:02:40.9]}
8... Nb6 {[%clk 0:02:56.9]} 9. Bb3 {[%clk 0:02:41.1]} 9... O-O {[%clk
0:02:55.1]} 10. h3 {[%clk 0:02:40.9]} 10... Nc6 {[%clk 0:02:51]} 11. Be3 {[%clk
0:02:40.8]} 11... Na5 {[%clk 0:02:50.8]} 12. Bc2 {[%clk 0:02:40.8]} 12... Nac4
{[%clk 0:02:48.3]} 13. Rb1 {[%clk 0:02:40]} 13... e5 {[%clk 0:02:44.3]} 14. dxe5
{[%clk 0:02:28.7]} 14... Nxe5 {[%clk 0:02:42.7]} 15. Nxe5 {[%clk 0:02:22.1]}
15... Qxd1+ {[%clk 0:02:42.7]} 16. Rxd1 {[%clk 0:02:19.3]} 16... Bxe5 {[%clk
0:02:43.6]} 17. Bb3 {[%clk 0:02:19.9]} 17... Bf5 {[%clk 0:02:29.5]} 18. O-O
{[%clk 0:02:10.8]} 18... Rac8 {[%clk 0:02:27.1]} 19. Bxb6 {[%clk 0:02:08.2]}
19... axb6 {[%clk 0:02:28]} 20. Nd5 {[%clk 0:02:08.1]} 20... Rcd8 {[%clk
0:02:16.5]} 21. Ne7+ {[%clk 0:01:54.5]} 21... Kg7 {[%clk 0:02:16.5]} 22. Nxf5+
{[%clk 0:01:54.5]} 22... gxf5 {[%clk 0:02:17.4]} 23. Rfe1 {[%clk 0:01:46.7]}
23... Bxb2 {[%clk 0:02:14.1]} 24. Rxd8 {[%clk 0:01:45.4]} 24... Rxd8 {[%clk
0:02:13.7]} 25. Re7 {[%clk 0:01:45.9]} 25... Rf8 {[%clk 0:02:04.3]} 26. Rxb7
{[%clk 0:01:45]} 26... Bd4 {[%clk 0:02:04.3]} 27. Rd7 {[%clk 0:01:42.6]} 27...
Bc5 {[%clk 0:02:03.4]} 28. Kf1 {[%clk 0:01:42.1]} 28... Kg6 {[%clk 0:01:59.6]}
29. Rd5 {[%clk 0:01:40.5]} 29... f4 {[%clk 0:01:40.3]} 30. Bc2+ {[%clk 0:01:40]}
30... Kg7 {[%clk 0:01:37.8]} 31. Rf5 {[%clk 0:01:40]} 31... Bd6 {[%clk
0:01:34.9]} 32. Ke2 {[%clk 0:01:32.4]} 32... f6 {[%clk 0:01:33.1]} 33. Rd5
{[%clk 0:01:31.8]} 33... Bc5 {[%clk 0:01:17.3]} 34. Bb3 {[%clk 0:01:26.5]} 34...
Re8+ {[%clk 0:01:13.9]} 35. Kf3 {[%clk 0:01:26.4]} 35... Re7 {[%clk 0:01:13.6]}
36. Rd8 {[%clk 0:01:23]} 36... Rc7 {[%clk 0:01:00.8]} 37. Rd2 {[%clk 0:01:20.6]}
37... Re7 {[%clk 0:01:00.2]} 38. Kxf4 {[%clk 0:01:19.3]} 38... Rc7 {[%clk
0:00:59]} 39. Kf5 {[%clk 0:01:11.7]} 39... Re7 {[%clk 0:00:58.9]} 40. f4 {[%clk
0:01:11.8]} 40... Rc7 {[%clk 0:00:57.2]} 41. Rd8 {[%clk 0:01:08]} 41... Bf8
{[%clk 0:00:57.1]} 42. g4 {[%clk 0:01:03.1]} 42... Ra7 {[%clk 0:00:52]} 43. h4
{[%clk 0:01:01.4]} 43... h6 {[%clk 0:00:45.5]} 44. Rb8 {[%clk 0:00:59]} 44...
Bc5 {[%clk 0:00:15.8]} 45. Rg8+ {[%clk 0:00:46.6]} 45... Kh7 {[%clk 0:00:16]}
46. h5 {[%clk 0:00:39]} 46... Bd4 {[%clk 0:00:15.7]} 47. Rd8 {[%clk 0:00:35.8]}
47... Bc3 {[%clk 0:00:14.8]} 48. Rd6 {[%clk 0:00:33.7]} 48... Rb7 {[%clk
0:00:12.2]} 49. Rd3 {[%clk 0:00:29.3]} 49... Bb2 {[%clk 0:00:11.6]} 50. Ke6
{[%clk 0:00:29.4]} 50... Kg7 {[%clk 0:00:10.3]} 51. Rd8 {[%clk 0:00:29.8]} 51...
b5 {[%clk 0:00:09.6]} 52. Bd5 {[%clk 0:00:29.5]} 52... Rc7 {[%clk 0:00:08.8]}
53. Kf5 {[%clk 0:00:29.6]} 53... b4 {[%clk 0:00:08.9]} 54. Rg8+ {[%clk 0:00:29]}
54... Kh7 {[%clk 0:00:09.1]} 55. Rb8 {[%clk 0:00:29.5]} 55... Bc3 {[%clk
0:00:09.3]} 56. Ke6 {[%clk 0:00:28.9]} 56... Rg7 {[%clk 0:00:08.7]} 57. Be4+
{[%clk 0:00:29]} 1-0

[Event "*** Titled Tuesday Blitz"]
[Site "Chess.com"]
[Date "2020.05.26"]
[Round "2"]
[White "ErikBlomqvist"]
[Black "GukeshDommaraju"]
[Result "0-1"]
[WhiteElo "2394"]
[BlackElo "2672"]
[TimeControl "180+1"]
[EndTime "10:18:24 PDT"]
[Termination "GukeshDommaraju won on time"]

1. e4 {[%clk 0:03:00.9]} 1... c5 {[%clk 0:02:59.7]} 2. Nf3 {[%clk 0:02:59]} 2...
Nc6 {[%clk 0:02:59.7]} 3. Bb5 {[%clk 0:02:57.7]} 3... g6 {[%clk 0:02:59.3]} 4.
O-O {[%clk 0:02:57.8]} 4... Bg7 {[%clk 0:02:58.9]} 5. Nc3 {[%clk 0:02:58.2]}
5... e5 {[%clk 0:02:51.4]} 6. Bc4 {[%clk 0:02:50.1]} 6... h6 {[%clk 0:02:38.8]}
7. a3 {[%clk 0:02:45.8]} 7... Nge7 {[%clk 0:02:34.2]} 8. d3 {[%clk 0:02:46.1]}
8... O-O {[%clk 0:02:33.5]} 9. b4 {[%clk 0:02:31.7]} 9... d6 {[%clk 0:02:23.4]}
10. Rb1 {[%clk 0:02:29.2]} 10... Nd4 {[%clk 0:02:14.6]} 11. bxc5 {[%clk
0:02:24.4]} 11... dxc5 {[%clk 0:02:14.1]} 12. Nxd4 {[%clk 0:02:00.3]} 12... cxd4
{[%clk 0:02:08.5]} 13. Nd5 {[%clk 0:02:00]} 13... Rb8 {[%clk 0:01:48.3]} 14. f4
{[%clk 0:01:21.9]} 14... Be6 {[%clk 0:01:40.6]} 15. Nxe7+ {[%clk 0:00:59.9]}
15... Qxe7 {[%clk 0:01:39]} 16. Bxe6 {[%clk 0:00:58.5]} 16... Qxe6 {[%clk
0:01:12.7]} 17. fxe5 {[%clk 0:00:58.4]} 17... b6 {[%clk 0:00:59.6]} 18. Rb5
{[%clk 0:00:47.8]} 18... Kh7 {[%clk 0:00:47.6]} 19. Qd2 {[%clk 0:00:36.8]} 19...
Rfd8 {[%clk 0:00:43.7]} 20. a4 {[%clk 0:00:20.3]} 20... a6 {[%clk 0:00:42.1]}
21. Rb4 {[%clk 0:00:13.3]} 21... Rbc8 {[%clk 0:00:35.1]} 22. h3 {[%clk
0:00:11.2]} 22... Rc6 {[%clk 0:00:31.7]} 23. Bb2 {[%clk 0:00:10.8]} 23... Bxe5
{[%clk 0:00:28.2]} 24. Qf2 {[%clk 0:00:06]} 24... Qd7 {[%clk 0:00:20]} 25. Qxf7+
{[%clk 0:00:04.2]} 25... Qxf7 {[%clk 0:00:20.2]} 26. Rxf7+ {[%clk 0:00:05.1]}
26... Kg8 {[%clk 0:00:21.1]} 27. Rf2 {[%clk 0:00:05]} 27... Rd7 {[%clk
0:00:14.4]} 28. g4 {[%clk 0:00:04.5]} 28... h5 {[%clk 0:00:12.2]} 29. Kg2 {[%clk
0:00:04.4]} 29... hxg4 {[%clk 0:00:12.2]} 30. hxg4 {[%clk 0:00:05.3]} 30... Rcd6
{[%clk 0:00:11.8]} 31. Rc4 {[%clk 0:00:04.4]} 31... Kg7 {[%clk 0:00:10.2]} 32.
Rc8 {[%clk 0:00:04.3]} 32... Re6 {[%clk 0:00:09.2]} 33. Ba3 {[%clk 0:00:04.6]}
33... Kh7 {[%clk 0:00:08.3]} 34. Rcf8 {[%clk 0:00:03.5]} 34... Kg7 {[%clk
0:00:04.3]} 35. Rc8 {[%clk 0:00:03.1]} 35... b5 {[%clk 0:00:04.5]} 36. Bf8+
{[%clk 0:00:02.9]} 36... Kh7 {[%clk 0:00:04.2]} 37. axb5 {[%clk 0:00:03.8]}
37... axb5 {[%clk 0:00:04.6]} 38. Rf1 {[%clk 0:00:03.3]} 38... g5 {[%clk
0:00:02.6]} 39. Rh1+ {[%clk 0:00:03.1]} 39... Kg8 {[%clk 0:00:03.1]} 40. Bd6+
{[%clk 0:00:01.8]} 40... Kf7 {[%clk 0:00:03]} 41. Bxe5 {[%clk 0:00:01.5]} 41...
Rxe5 {[%clk 0:00:03.4]} 42. Rh7+ {[%clk 0:00:01.7]} 42... Ke6 {[%clk 0:00:03.4]}
43. Re8+ {[%clk 0:00:01.8]} 43... Kf6 {[%clk 0:00:03.9]} 0-1

[Event "*** Titled Tuesday Blitz"]
[Site "Chess.com"]
[Date "2020.05.26"]
[Round "2"]
[White "S_Kalvaitis"]
[Black "WonderChampion"]
[Result "1-0"]
[WhiteElo "2333"]
[BlackElo "1925"]
[TimeControl "180+1"]
[EndTime "10:18:24 PDT"]
[Termination "S_Kalvaitis won by checkmate"]

1. d4 {[%clk 0:03:00.9]} 1... d5 {[%clk 0:02:59.4]} 2. Bf4 {[%clk 0:03:01]} 2...
Nf6 {[%clk 0:02:58.2]} 3. e3 {[%clk 0:03:01.1]} 3... e6 {[%clk 0:02:48.2]} 4.
Nf3 {[%clk 0:03:00.3]} 4... c5 {[%clk 0:02:46.5]} 5. Nbd2 {[%clk 0:02:58.9]}
5... Nc6 {[%clk 0:02:43.9]} 6. c3 {[%clk 0:02:54.9]} 6... Bd7 {[%clk 0:02:35.2]}
7. Bd3 {[%clk 0:02:53.8]} 7... a6 {[%clk 0:02:32.2]} 8. O-O {[%clk 0:02:50.7]}
8... Be7 {[%clk 0:02:24.6]} 9. Re1 {[%clk 0:02:49.9]} 9... O-O {[%clk
0:02:19.7]} 10. e4 {[%clk 0:02:46.6]} 10... dxe4 {[%clk 0:02:12.5]} 11. Nxe4
{[%clk 0:02:46.4]} 11... Nxe4 {[%clk 0:02:11.4]} 12. Bxe4 {[%clk 0:02:47.3]}
12... cxd4 {[%clk 0:02:02.3]} 13. cxd4 {[%clk 0:02:46.1]} 13... Qb6 {[%clk
0:01:57.8]} 14. Rb1 {[%clk 0:02:15.3]} 14... Rfd8 {[%clk 0:01:47.5]} 15. Be3
{[%clk 0:01:35.9]} 15... Qc7 {[%clk 0:01:39.3]} 16. Ng5 {[%clk 0:01:16.2]} 16...
h6 {[%clk 0:01:31.2]} 17. Nh3 {[%clk 0:01:11.5]} 17... Bd6 {[%clk 0:01:17.2]}
18. Qh5 {[%clk 0:00:56.4]} 18... e5 {[%clk 0:00:48]} 19. dxe5 {[%clk 0:00:41.5]}
19... Nxe5 {[%clk 0:00:43.1]} 20. Nf4 {[%clk 0:00:39.8]} 20... Nc4 {[%clk
0:00:35.2]} 21. Nd5 {[%clk 0:00:37]} 21... Qa5 {[%clk 0:00:27.9]} 22. Bxh6
{[%clk 0:00:31.1]} 22... Bc6 {[%clk 0:00:13.3]} 23. Qg5 {[%clk 0:00:23.6]} 23...
Be5 {[%clk 0:00:10.7]} 24. Ne7+ {[%clk 0:00:16.1]} 24... Kf8 {[%clk 0:00:10.8]}
25. Nxc6 {[%clk 0:00:10.8]} 25... bxc6 {[%clk 0:00:10.6]} 26. b3 {[%clk
0:00:08.2]} 26... Nd6 {[%clk 0:00:09.5]} 27. Bxg7+ {[%clk 0:00:07.4]} 27... Bxg7
{[%clk 0:00:06.3]} 28. Qxa5 {[%clk 0:00:08.3]} 28... Rac8 {[%clk 0:00:06.3]} 29.
Qc5 {[%clk 0:00:08.2]} 29... Kg8 {[%clk 0:00:05.5]} 30. Rbd1 {[%clk 0:00:07]}
30... Nxe4 {[%clk 0:00:05.6]} 31. Rxd8+ {[%clk 0:00:06.9]} 31... Rxd8 {[%clk
0:00:06.5]} 32. Qxc6 {[%clk 0:00:06.3]} 32... Nf6 {[%clk 0:00:05.5]} 33. Qxa6
{[%clk 0:00:05.8]} 33... Rb8 {[%clk 0:00:05.5]} 34. h3 {[%clk 0:00:05.6]} 34...
Rf8 {[%clk 0:00:05.9]} 35. g4 {[%clk 0:00:04.8]} 35... Nh7 {[%clk 0:00:06.1]}
36. f4 {[%clk 0:00:04.8]} 36... Nf6 {[%clk 0:00:06.2]} 37. Qc4 {[%clk
0:00:03.8]} 37... Nd7 {[%clk 0:00:06.3]} 38. f5 {[%clk 0:00:03.9]} 38... Nf6
{[%clk 0:00:06.2]} 39. Qf4 {[%clk 0:00:04]} 39... Nd7 {[%clk 0:00:06]} 40. g5
{[%clk 0:00:04.3]} 40... Ne5 {[%clk 0:00:06]} 41. f6 {[%clk 0:00:04.5]} 41...
Ng6 {[%clk 0:00:04]} 42. Qf5 {[%clk 0:00:04.2]} 42... Bh8 {[%clk 0:00:04.2]} 43.
Qg4 {[%clk 0:00:04.7]} 43... Rd8 {[%clk 0:00:04.1]} 44. h4 {[%clk 0:00:04.9]}
44... Rf8 {[%clk 0:00:02.7]} 45. h5 {[%clk 0:00:05.3]} 45... Ne5 {[%clk
0:00:02.7]} 46. Rxe5 {[%clk 0:00:05.2]} 46... Kh7 {[%clk 0:00:03.2]} 47. g6+
{[%clk 0:00:04.9]} 47... fxg6 {[%clk 0:00:03.9]} 48. Qxg6# {[%clk 0:00:05.6]}
1-0